bitfinex/quotes_BTCUSD_20241229
["timestamp","ask_amount","ask_price","bid_price","bid_amount"]
[1735480196087,0.03035466,95145.0,95139.0,0.0831708]
[1735480196313,0.2837647,95147.0,95139.0,0.0831708]
[1735480196429,4.271082,95146.0,95139.0,0.0831708]
[1735480196784,4.5548467,95146.0,95139.0,0.0831708]
[1735480196985,0.2837647,95146.0,95139.0,0.0831708]
[1735480197245,0.01978193,95145.0,95139.0,0.0831708]
[1735480197818,0.01649214,95144.0,95139.0,0.0831708]
[1735480198247,0.2837647,95146.0,95139.0,0.0831708]
[1735480198401,0.2837647,95146.0,95139.0,0.0841708]
[1735480198609,0.2837647,95147.0,95139.0,0.0841708]
[1735480198829,0.2837647,95147.0,95139.0,0.0831708]
[1735480199656,0.001,95145.0,95139.0,0.0831708]
[1735480201048,0.0164921,95144.0,95139.0,0.0831708]
[1735480203582,0.0174921,95144.0,95139.0,0.0831708]
[1735480205461,0.001,95144.0,95139.0,0.0831708]
[1735480208278,0.01649212,95143.0,95139.0,0.0831708]
[1735480210453,0.01649212,95143.0,95139.0,0.0841708]
[1735480211934,4.29171952,95142.0,95139.0,0.0011708]
[1735480212166,4.37506832,95141.0,95139.0,0.0011708]
[1735480212319,4.29592866,95140.0,95139.0,0.0011708]
[1735480212725,4.29592866,95140.0,95139.0,0.0001708]
[1735480212947,4.63548987,95140.0,95139.0,0.0001708]
[1735480213125,4.61064321,95140.0,95139.0,0.0011708]
[1735480213325,4.6730612,95140.0,95139.0,0.0011708]
[1735480213520,4.6730612,95140.0,95139.0,0.0001708]
[1735480214067,4.6770612,95140.0,95139.0,0.0001708]
[1735480215564,4.35728192,95140.0,95139.0,0.0001708]
[1735480218896,4.37377526,95140.0,95139.0,0.0001708]
[1735480220301,4.18269326,95140.0,95139.0,0.0001708]
[1735480220497,4.07769326,95140.0,95139.0,0.0001708]
[1735480220664,2.18427527,95140.0,95139.0,0.0001708]
[1735480221073,2.16449334,95140.0,95139.0,0.0001708]
[1735480222896,2.148,95140.0,95139.0,0.0001708]
[1735480224410,2.4319469,95140.0,95139.0,0.0001708]
[1735480224934,2.45172883,95140.0,95139.0,0.0001708]
[1735480225269,2.55571515,95140.0,95139.0,0.0001708]
[1735480225431,2.57220852,95140.0,95139.0,0.0001708]
[1735480225631,1.6212222,95140.0,95139.0,0.0799708]
[1735480226049,1.17544027,95140.0,95139.0,0.0799708]
[1735480226456,1.03344027,95140.0,95139.0,0.0799708]
[1735480226902,1.03544027,95140.0,95139.0,0.0799708]
[1735480227083,0.99244027,95140.0,95139.0,0.0799708]
[1735480227282,1.10944027,95140.0,95139.0,0.0799708]
[1735480227569,1.00444027,95140.0,95139.0,0.0799708]
[1735480227770,0.68849337,95140.0,95139.0,0.0799708]
[1735480228191,0.68949337,95140.0,95139.0,0.0799708]
[1735480228531,0.63749337,95140.0,95139.0,0.0799708]
[1735480229051,0.92144027,95140.0,95139.0,0.0799708]
[1735480229440,1.0135843,95140.0,95139.0,0.0799708]
[1735480229737,1.0135843,95140.0,95139.0,0.0001708]
[1735480231100,1.02845535,95140.0,95139.0,0.0001708]
[1735480231320,1.03843096,95140.0,95139.0,0.0001708]
[1735480232133,0.75448406,95140.0,95139.0,0.0001708]
[1735480232730,0.75448406,95140.0,95137.0,0.0001708]
[1735480232731,0.5345168,95120.0,95108.0,0.0798]
[1735480232927,4.32453368,95119.0,95103.0,0.0001708]
[1735480233229,4.271082,95118.0,95103.0,0.0001708]
[1735480233362,0.01649729,95116.0,95103.0,0.0001708]
[1735480233563,4.271082,95115.0,95103.0,0.0001708]
[1735480233757,0.07426028,95114.0,95103.0,0.0001708]
[1735480233973,0.09404221,95114.0,95103.0,0.00032358]
[1735480234179,0.01649795,95112.0,95103.0,0.00032358]
[1735480234378,4.271082,95111.0,95103.0,0.00032358]
[1735480235687,4.274082,95111.0,95103.0,0.00132358]
[1735480235913,4.36322603,95110.0,95103.0,0.00132358]
[1735480236084,4.271082,95109.0,95103.0,0.00032358]
[1735480236495,4.271082,95109.0,95103.0,0.00132358]
[1735480236897,4.271082,95109.0,95103.0,0.00032358]
[1735480237128,0.07426028,95108.0,95103.0,0.00032358]
[1735480237277,4.271082,95107.0,95103.0,0.00032358]
[1735480238855,0.07426028,95108.0,95103.0,0.00032358]
[1735480239213,4.271082,95107.0,95103.0,0.00032358]
[1735480239409,4.271082,95111.0,95103.0,0.00032358]
[1735480239551,0.004,95107.0,95103.0,0.00032358]
[1735480239975,0.01649795,95112.0,95103.0,0.00032358]
[1735480240183,4.271082,95111.0,95103.0,0.00032358]
[1735480240386,0.004,95108.0,95103.0,0.00032358]
[1735480240652,4.271082,95107.0,95103.0,0.00032358]
[1735480240864,4.273082,95107.0,95103.0,0.00032358]
[1735480241079,0.002,95107.0,95103.0,0.00032358]
[1735480241302,0.004,95108.0,95103.0,0.00032358]
[1735480241466,4.271082,95107.0,95103.0,0.00032358]
[1735480241679,0.10398632,95106.0,95103.0,0.00032358]
[1735480242142,0.004,95108.0,95103.0,0.00032358]
[1735480242349,4.271082,95107.0,95103.0,0.00032358]
[1735480242600,0.002,95107.0,95103.0,0.00032358]
[1735480242816,0.006,95107.0,95103.0,0.00032358]
[1735480243182,0.002,95107.0,95103.0,0.00032358]
[1735480243778,0.004,95108.0,95103.0,0.00032358]
[1735480243981,4.271082,95107.0,95103.0,0.00032358]
[1735480244199,0.10598632,95106.0,95103.0,0.00032358]
[1735480244358,0.002,95106.0,95103.0,0.00032358]
[1735480244557,0.01649871,95107.0,95103.0,0.00032358]
[1735480245222,0.02484666,95122.0,95103.0,0.00032358]
[1735480245420,4.271082,95121.0,95103.0,0.00032358]
[1735480245577,0.003,95108.0,95103.0,0.00032358]
[1735480245759,4.271082,95107.0,95103.0,0.00032358]
[1735480245958,4.37906832,95107.0,95103.0,0.00032358]
[1735480246202,0.10798632,95107.0,95103.0,0.00032358]
[1735480246408,0.003,95108.0,95103.0,0.00032358]
[1735480246609,4.271082,95107.0,95103.0,0.00132358]
[1735480247016,4.271082,95107.0,95103.0,0.00032358]
[1735480247215,0.002,95107.0,95103.0,0.00032358]
[1735480247432,0.005,95107.0,95103.0,0.00032358]
[1735480248371,0.02149873,95107.0,95103.0,0.00032358]
[1735480252719,0.02149873,95107.0,95104.0,0.0819]
[1735480253706,0.01849873,95107.0,95104.0,0.0819]
[1735480254106,0.01949873,95107.0,95104.0,0.0819]
[1735480254308,0.01949873,95107.0,95106.0,0.0819]
[1735480254508,0.01849873,95107.0,95106.0,0.1316]
[1735480254832,0.01649873,95107.0,95106.0,0.1316]
[1735480255239,0.01749873,95107.0,95106.0,0.1316]
[1735480255774,0.01749873,95107.0,95106.0,0.2316]
[1735480256281,0.01749873,95107.0,95106.0,0.3316]
[1735480256684,0.01649873,95107.0,95106.0,0.3366]
[1735480256891,0.01649873,95107.0,95106.0,0.3376]
[1735480257210,0.01649873,95107.0,95106.0,0.3326]
[1735480258006,0.01649873,95107.0,95106.0,0.3376]
[1735480258941,8.54e-05,95134.0,95107.0,0.1316]
[1735480259176,4.30193843,95133.0,95109.0,0.0819]
[1735480259382,4.223,95132.0,95109.0,0.0819]
[1735480260822,4.229,95132.0,95109.0,0.0829]
[1735480261025,4.039,95131.0,95109.0,0.0829]
[1735480261343,0.10398632,95130.0,95110.0,0.0497]
[1735480261511,2.48398632,95130.0,95111.0,0.0819]
[1735480261710,1.486,95129.0,95111.0,0.0819]
[1735480261950,0.01649682,95126.0,95111.0,0.0819]
[1735480262154,0.58556156,95125.0,95111.0,0.0819]
[1735480262390,0.01649682,95126.0,95111.0,0.0819]
[1735480262586,0.505,95125.0,95111.0,0.0819]
[1735480263407,4.274082,95131.0,95111.0,0.0819]
[1735480263635,4.271082,95130.0,95111.0,0.0819]
[1735480263830,0.10398632,95129.0,95111.0,0.0819]
[1735480264035,3.95,95128.0,95111.0,0.0819]
[1735480264237,0.002,95125.0,95111.0,0.0819]
[1735480264802,0.006,95131.0,95111.0,0.0819]
[1735480265001,0.003,95129.0,95111.0,0.0819]
[1735480265183,3.28698632,95128.0,95111.0,0.0819]
[1735480265485,3.11,95127.0,95111.0,0.0819]
[1735480266193,0.01649687,95124.0,95111.0,0.0819]
[1735480268117,0.01849687,95124.0,95111.0,0.0819]
[1735480268355,0.02149687,95124.0,95111.0,0.0819]
[1735480272767,4.2959287,95123.0,95111.0,0.0819]
[1735480272967,0.89798632,95122.0,95111.0,0.0819]
[1735480273192,1.098,95121.0,95111.0,0.0819]
[1735480273394,0.844,95121.0,95111.0,0.0819]
[1735480273592,0.877,95121.0,95111.0,0.0819]
[1735480273822,0.515,95121.0,95111.0,0.0819]
[1735480274020,0.491,95121.0,95111.0,0.0819]
[1735480274229,0.606,95121.0,95111.0,0.0819]
[1735480274559,0.06241799,95120.0,95111.0,0.0819]
[1735480274762,3.0,95119.0,95111.0,0.0819]
[1735480274912,0.247,95118.0,95111.0,0.0819]
[1735480275102,0.276,95119.0,95111.0,0.0819]
[1735480275457,0.318,95119.0,95111.0,0.0819]
[1735480275659,0.24849648,95118.0,95111.0,0.0819]
[1735480275863,0.183,95117.0,95111.0,0.0819]
[1735480276162,0.141,95116.0,95111.0,0.0819]
[1735480276388,0.868,95123.0,95111.0,0.0819]
[1735480276569,2.234,95124.0,95111.0,0.0820708]
[1735480276734,0.78998632,95123.0,95111.0,0.0820708]
[1735480276933,0.194,95122.0,95111.0,0.0820708]
[1735480277137,0.131,95122.0,95111.0,0.0820708]
[1735480277342,0.642,95123.0,95111.0,0.0820708]
[1735480277545,0.131,95122.0,95111.0,0.0820708]
[1735480277755,0.001,95120.0,95112.0,0.0475]
[1735480277936,0.001,95120.0,95113.0,0.0752]
[1735480278137,0.01649698,95120.0,95113.0,0.0752]
[1735480279472,0.01749698,95120.0,95113.0,0.0752]
[1735480280048,0.964943,95119.0,95113.0,0.0752]
[1735480282522,0.951245,95119.0,95113.0,0.0752]
[1735480282734,0.777796,95119.0,95113.0,0.0752]
[1735480283140,0.687346,95119.0,95113.0,0.0772]
[1735480285730,2.760927,95132.0,95113.0,0.0772]
[1735480285930,0.10398632,95131.0,95113.0,0.0772]
[1735480286125,2.346825,95130.0,95113.0,0.0772]
[1735480286545,2.3716717,95130.0,95113.0,0.0772]
[1735480286755,3.1865537,95129.0,95113.0,0.0772]
[1735480286953,0.04463509,95129.0,95113.0,0.0752]
[1735480287157,3.20046399,95128.0,95113.0,0.0752]
[1735480287358,2.845773,95127.0,95113.0,0.0752]
[1735480287819,2.77126,95127.0,95113.0,0.0752]
[1735480288031,0.01978839,95126.0,95113.0,0.0752]
[1735480288229,2.78583439,95126.0,95113.0,0.0752]
[1735480288430,0.01649689,95124.0,95113.0,0.0752]
[1735480288636,1.997005,95123.0,95113.0,0.0752]
[1735480288837,1.984891,95123.0,95113.0,0.0752]
[1735480289038,1.999065,95123.0,95113.0,0.0752]
[1735480290298,2.000065,95123.0,95113.0,0.0752]
[1735480290446,1.84417099,95122.0,95113.0,0.0752]
[1735480290650,1.43171,95121.0,95113.0,0.0752]
[1735480290886,1.764581,95122.0,95113.0,0.0752]
[1735480291203,1.920581,95122.0,95113.0,0.0752]
[1735480291427,1.672687,95122.0,95113.0,0.0752]
[1735480291641,0.001,95123.0,95113.0,0.0752]
[1735480291642,1.135817,95121.0,95113.0,0.0752]
[1735480291847,1.529572,95122.0,95113.0,0.0752]
[1735480292390,1.529572,95123.0,95113.0,0.0752]
[1735480292658,1.377334,95123.0,95113.0,0.0752]
[1735480292841,1.51335532,95123.0,95113.0,0.0752]
[1735480293013,1.627366,95122.0,95113.0,0.0752]
[1735480293220,2.274775,95129.0,95113.0,0.0752]
[1735480293465,2.240655,95129.0,95113.0,0.0752]
[1735480293607,0.001,95123.0,95113.0,0.0762]
[1735480293809,2.10455532,95122.0,95113.0,0.0762]
[1735480294010,1.37809,95121.0,95113.0,0.0752]
[1735480294216,1.37809,95121.0,95113.0,0.0762]
[1735480294418,1.288385,95121.0,95113.0,0.0762]
[1735480294733,1.307049,95121.0,95113.0,0.0762]
[1735480295543,0.10398632,95122.0,95113.0,0.0752]
[1735480295748,1.047003,95121.0,95113.0,0.0752]
[1735480295970,0.01649674,95120.0,95113.0,0.0752]
[1735480296349,1.408635,95119.0,95113.0,0.0752]
[1735480296676,1.281386,95119.0,95113.0,0.0752]
[1735480296831,2.207514,95119.0,95113.0,0.0752]
[1735480297031,0.10398632,95118.0,95113.0,0.0752]
[1735480297283,2.077636,95117.0,95113.0,0.0752]
[1735480297481,1.557314,95116.0,95113.0,0.0752]
[1735480297696,2.038354,95117.0,95113.0,0.0752]
[1735480297983,1.360917,95116.0,95113.0,0.0752]
[1735480298195,0.06241799,95115.0,95113.0,0.0752]
[1735480298391,1.338506,95114.0,95113.0,0.0762]
[1735480298793,1.338506,95114.0,95113.0,0.0752]
[1735480299249,1.338506,95114.0,95113.0,0.0782]
[1735480299549,0.870209,95114.0,95113.0,0.0782]
[1735480299748,0.96512137,95114.0,95113.0,0.0782]
[1735480299913,0.96512137,95114.0,95113.0,0.0792]
[1735480300109,0.870209,95114.0,95113.0,0.0762]
[1735480300476,0.532399,95114.0,95113.0,0.0763708]
[1735480300746,1.456957,95119.0,95113.0,0.0763708]
[1735480300948,1.422027,95119.0,95113.0,0.0763708]
[1735480301160,1.433361,95119.0,95113.0,0.0763708]
[1735480301742,0.753366,95119.0,95114.0,0.0785]
[1735480302038,0.772455,95119.0,95114.0,0.0785]
[1735480303053,0.51457763,95119.0,95114.0,0.0785]
[1735480303174,0.01649674,95120.0,95114.0,0.0785]
[1735480303374,0.337724,95119.0,95114.0,0.0785]
[1735480303978,0.252419,95119.0,95114.0,0.0785]
[1735480304419,1.985804,95133.0,95114.0,0.0785]
[1735480304726,1.985804,95133.0,95115.0,0.0785]
[1735480305686,1.988804,95133.0,95115.0,0.0785]
[1735480305885,2.310966,95132.0,95115.0,0.0785]
[1735480306287,2.206011,95132.0,95115.0,0.0785]
[1735480306488,2.372052,95133.0,95115.0,0.0785]
[1735480306787,2.189076,95132.0,95115.0,0.0785]
[1735480307530,0.01649643,95128.0,95115.0,0.0785]
[1735480307758,1.645067,95127.0,95115.0,0.0785]
[1735480308086,1.645067,95127.0,95113.0,0.1001708]
[1735480308087,0.01649643,95128.0,95127.0,0.1]
[1735480308293,0.01649643,95128.0,95127.0,0.1785]
[1735480308714,0.28354683,95139.0,95128.0,0.0785]
[1735480308715,0.002,95132.0,95128.0,0.0785]
[1735480309129,0.28354683,95139.0,95128.0,0.0785]
[1735480309329,0.477637,95133.0,95128.0,0.0785]
[1735480309539,0.477637,95133.0,95128.0,0.0765]
[1735480311163,0.477637,95133.0,95126.0,0.0472]
[1735480311164,0.477637,95133.0,95131.0,0.1]
[1735480311706,0.49413148,95133.0,95131.0,0.1]
[1735480311859,0.01649448,95133.0,95132.0,0.0494]
[1735480312205,0.31282048,95133.0,95132.0,0.1494]
[1735480312586,0.31282048,95133.0,95132.0,0.2306]
[1735480312788,0.31282048,95133.0,95132.0,0.36386]
[1735480312987,0.00010704,95133.0,95132.0,0.36386]
[1735480313513,0.00010704,95133.0,95132.0,0.3326]
[1735480313910,0.00010704,95133.0,95132.0,0.3306]
[1735480314533,0.00010704,95133.0,95132.0,0.3316]
[1735480315871,0.00010704,95133.0,95132.0,0.3356]
[1735480316226,0.01659958,95133.0,95132.0,0.3356]
[1735480321095,0.01659958,95133.0,95132.0,0.3316]
[1735480321307,0.01659958,95133.0,95132.0,0.3306]
[1735480321556,0.01659958,95133.0,95132.0,0.3346]
[1735480322707,0.00010704,95133.0,95132.0,0.3346]
[1735480322937,0.00010704,95133.0,95132.0,0.3356]
[1735480323354,0.00010704,95133.0,95132.0,0.3346]
[1735480324281,0.00010704,95133.0,95132.0,0.3356]
[1735480326110,0.01660004,95133.0,95132.0,0.3356]
[1735480326312,0.01668544,95133.0,95132.0,0.3356]
[1735480327115,0.00019244,95133.0,95132.0,0.3356]
[1735480327647,0.00019244,95133.0,95132.0,0.005]
[1735480327648,2.12867644,95133.0,95132.0,0.005]
[1735480327854,1.59938446,95133.0,95132.0,0.005]
[1735480328001,1.00161114,95133.0,95132.0,0.005]
[1735480328418,0.87498644,95133.0,95132.0,0.005]
[1735480328617,0.37587144,95133.0,95132.0,0.0843]
[1735480328818,0.35676944,95133.0,95132.0,0.1843]
[1735480329605,0.37892344,95133.0,95132.0,0.1843]
[1735480329810,0.35188644,95133.0,95132.0,0.1843]
[1735480330042,0.22788644,95133.0,95132.0,0.1843]
[1735480330185,0.24437976,95133.0,95132.0,0.1843]
[1735480331190,0.01668576,95133.0,95132.0,0.1843]
[1735480331394,0.01668576,95133.0,95132.0,0.3327]
[1735480333647,0.00019244,95133.0,95132.0,0.3327]
[1735480334456,0.00019244,95133.0,95132.0,0.3317]
[1735480334905,0.00019244,95133.0,95132.0,0.3277]
[1735480335216,0.00019244,95133.0,95132.0,0.3297]
[1735480335363,0.00019244,95133.0,95132.0,0.3357]
[1735480337167,0.01668489,95133.0,95132.0,0.3357]
[1735480338308,0.00019244,95133.0,95132.0,0.3357]
[1735480341484,0.01668487,95133.0,95132.0,0.3357]
[1735480342294,0.07749562,95155.0,95132.0,0.3357]
[1735480342501,1.436782,95154.0,95133.0,0.08295101]
[1735480342792,0.01649245,95150.0,95140.0,0.0819]
[1735480343004,0.903233,95149.0,95140.0,0.0819]
[1735480343503,0.790024,95149.0,95140.0,0.0819]
[1735480343682,0.819861,95149.0,95140.0,0.0819]
[1735480344304,0.808409,95149.0,95140.0,0.0819]
[1735480344462,0.809546,95149.0,95140.0,0.0819]
[1735480344664,0.739825,95148.0,95140.0,0.0819]
[1735480346594,0.663931,95148.0,95140.0,0.0819]
[1735480346792,0.61879,95147.0,95140.0,0.0819]
[1735480347416,0.50036,95147.0,95140.0,0.0819]
[1735480348827,0.50136,95147.0,95140.0,0.0819]
[1735480349030,0.331817,95146.0,95140.0,0.0819]
[1735480349634,0.211817,95146.0,95140.0,0.0819]
[1735480350000,0.331817,95146.0,95141.0,0.1]
[1735480350575,0.001,95146.0,95141.0,0.1]
[1735480350880,0.328309,95145.0,95141.0,0.1]
[1735480351218,0.01649245,95150.0,95141.0,0.1]
[1735480351419,0.0010854,95146.0,95141.0,0.1]
[1735480351614,0.439492,95145.0,95141.0,0.1]
[1735480353890,0.439492,95145.0,95141.0,0.102]
[1735480354529,8.54e-05,95146.0,95141.0,0.102]
[1735480354683,0.705936,95145.0,95141.0,0.002]
[1735480355023,0.07225139,95144.0,95141.0,0.002]
[1735480355171,1.058708,95143.0,95141.0,0.002]
[1735480356172,0.802265,95143.0,95139.0,0.1]
[1735480356423,0.791948,95143.0,95139.0,0.1]
[1735480356599,0.791948,95143.0,95141.0,0.003]
[1735480356810,1.383006,95145.0,95141.0,0.004]
[1735480357351,1.383006,95145.0,95141.0,0.003]
[1735480357929,1.383006,95145.0,95139.0,0.1]
[1735480358248,1.383006,95145.0,95140.0,0.1]
[1735480359453,1.383006,95145.0,95141.0,0.002]
[1735480359792,1.383006,95145.0,95139.0,0.2]
[1735480360184,1.383006,95145.0,95140.0,0.003]
[1735480360898,0.01649237,95144.0,95140.0,0.103]
[1735480361103,1.300183,95143.0,95141.0,0.001]
[1735480361394,1.300183,95143.0,95141.0,0.004]
[1735480361540,1.300183,95143.0,95141.0,0.003]
[1735480362103,1.049247,95143.0,95141.0,0.003]
[1735480362888,1.049247,95143.0,95140.0,0.101]
[1735480363116,1.049247,95143.0,95140.0,0.104]
[1735480363333,1.049247,95143.0,95140.0,0.103]
[1735480363534,1.049247,95143.0,95140.0,0.1]
[1735480363735,1.049247,95143.0,95141.0,0.004]
[1735480364052,1.049247,95143.0,95140.0,0.101]
[1735480364379,1.049247,95143.0,95140.0,0.1]
[1735480364587,1.15323332,95143.0,95140.0,0.0051708]
[1735480364734,1.39829,95142.0,95140.0,0.0051708]
[1735480365115,1.236509,95141.0,95140.0,0.0051708]
[1735480365318,1.27829,95142.0,95140.0,0.0051708]
[1735480365535,1.34057099,95142.0,95140.0,0.0051708]
[1735480365704,1.237832,95141.0,95140.0,0.0051708]
[1735480365903,1.237832,95141.0,95140.0,0.0011708]
[1735480366320,1.237832,95141.0,95140.0,0.0041708]
[1735480366807,1.237832,95141.0,95140.0,0.0051708]
[1735480367122,2.0644,95145.0,95140.0,0.0011708]
[1735480367525,1.593611,95144.0,95140.0,0.0011708]
[1735480367851,1.830027,95145.0,95140.0,0.0001708]
[1735480368051,2.082027,95145.0,95140.0,0.0071708]
[1735480368483,0.01649257,95144.0,95140.0,0.0071708]
[1735480368854,1.434066,95143.0,95140.0,0.0071708]
[1735480369055,1.817328,95145.0,95140.0,0.0071708]
[1735480369501,1.560072,95144.0,95140.0,0.0051708]
[1735480369846,1.783849,95145.0,95140.0,0.0051708]
[1735480370053,1.783849,95145.0,95140.0,0.0011708]
[1735480370387,1.783849,95145.0,95140.0,0.0041708]
[1735480370907,1.6962,95145.0,95140.0,0.0031708]
[1735480371118,1.684534,95145.0,95140.0,0.0041708]
[1735480371849,1.410912,95145.0,95140.0,0.0041708]
[1735480372152,1.10134955,95144.0,95140.0,0.0041708]
[1735480372302,0.960772,95143.0,95140.0,0.0041708]
[1735480372889,0.936903,95143.0,95140.0,0.0041708]
[1735480373259,0.936903,95143.0,95140.0,0.0031708]
[1735480373465,0.936903,95143.0,95140.0,0.0011708]
[1735480373824,1.330858,95145.0,95140.0,0.0051708]
[1735480374022,1.43484432,95145.0,95140.0,0.0041708]
[1735480374225,1.324857,95144.0,95140.0,0.0051708]
[1735480374645,1.324857,95144.0,95140.0,0.0011708]
[1735480375042,1.324857,95144.0,95140.0,0.0041708]
[1735480375909,1.220466,95144.0,95140.0,0.0031708]
[1735480376202,1.064648,95143.0,95140.0,0.0041708]
[1735480376406,0.10398632,95145.0,95140.0,0.0011708]
[1735480376407,1.215761,95144.0,95140.0,0.0011708]
[1735480376765,1.463822,95145.0,95140.0,0.0031708]
[1735480376962,1.463822,95145.0,95140.0,0.0001708]
[1735480377212,1.463822,95145.0,95140.0,0.0011708]
[1735480377390,0.0164926,95144.0,95140.0,0.0011708]
[1735480377598,1.191361,95143.0,95140.0,0.0011708]
[1735480377918,1.191361,95143.0,95140.0,0.0001708]
[1735480378751,1.782565,95145.0,95140.0,0.0001708]
[1735480378952,1.585571,95145.0,95140.0,0.0041708]
[1735480379155,1.585576,95145.0,95140.0,0.0041708]
[1735480379311,1.345833,95144.0,95140.0,0.0051708]
[1735480379522,1.591834,95145.0,95140.0,0.0051708]
[1735480380106,1.591834,95145.0,95140.0,0.0041708]
[1735480380315,1.591834,95145.0,95140.0,0.0001708]
[1735480380647,1.591834,95145.0,95140.0,0.0041708]
[1735480381026,1.591834,95145.0,95140.0,0.0031708]
[1735480381230,0.01649257,95144.0,95140.0,0.0031708]
[1735480381445,1.482834,95143.0,95140.0,0.0031708]
[1735480381925,1.464698,95143.0,95140.0,0.0031708]
[1735480382130,1.48292,95143.0,95140.0,0.0031708]
[1735480382387,1.48292,95143.0,95140.0,0.0041708]
[1735480382594,1.465751,95142.0,95140.0,0.0041708]
[1735480382792,1.465751,95143.0,95140.0,0.0041708]
[1735480383008,1.451078,95143.0,95140.0,0.0031708]
[1735480383230,1.46891,95143.0,95140.0,0.0031708]
[1735480383426,1.46891,95143.0,95140.0,0.0041708]
[1735480383640,1.46891,95143.0,95140.0,0.0011708]
[1735480383878,1.46891,95143.0,95140.0,0.0051708]
[1735480385335,1.841849,95145.0,95140.0,0.0051708]
[1735480385676,1.797054,95145.0,95140.0,0.0051708]
[1735480385822,1.330296,95144.0,95140.0,0.0051708]
[1735480386035,1.555192,95145.0,95141.0,0.0789]
[1735480386842,1.65917832,95145.0,95141.0,0.0789]
[1735480387110,8.54e-05,95146.0,95141.0,0.0789]
[1735480387111,1.409944,95144.0,95141.0,0.0789]
[1735480387302,1.409561,95143.0,95141.0,0.0789]
[1735480387530,1.389474,95142.0,95141.0,0.0789]
[1735480387700,1.687675,95145.0,95141.0,0.0789]
[1735480387902,1.6655,95145.0,95141.0,0.0789]
[1735480388324,1.6655,95145.0,95141.0,0.0819]
[1735480388987,1.6655,95145.0,95141.0,0.0789]
[1735480391603,1.6655,95145.0,95141.0,0.0829]
[1735480391769,1.6655,95145.0,95141.0,0.0839]
[1735480391985,1.6655,95145.0,95141.0,0.0799]
[1735480392341,1.6655,95145.0,95141.0,0.0829]
[1735480392889,0.01649253,95145.0,95141.0,0.0829]
[1735480393070,1.702361,95144.0,95141.0,0.0829]
[1735480394071,1.938777,95145.0,95141.0,0.0829]
[1735480394273,1.938777,95145.0,95141.0,0.0819]
[1735480394660,1.667283,95145.0,95141.0,0.0829]
[1735480395016,1.667283,95145.0,95141.0,0.0799]
[1735480395217,1.667283,95145.0,95141.0,0.0789]
[1735480395507,1.519397,95145.0,95141.0,0.0799]
[1735480395700,1.271072,95144.0,95141.0,0.0799]
[1735480395908,1.518662,95145.0,95141.0,0.0829]
[1735480396062,1.518662,95145.0,95141.0,0.0799]
[1735480396569,1.518662,95145.0,95141.0,0.0829]
[1735480397435,1.518662,95145.0,95141.0,0.0819]
[1735480397750,1.518662,95145.0,95141.0,0.0829]
[1735480398158,1.518662,95145.0,95141.0,0.0819]
[1735480398369,1.53515433,95145.0,95141.0,0.0819]
[1735480398583,1.298341,95144.0,95141.0,0.0829]
[1735480399664,1.558721,95145.0,95141.0,0.0829]
[1735480399900,1.558721,95145.0,95141.0,0.0799]
[1735480400322,1.558721,95145.0,95141.0,0.0829]
[1735480400627,1.558721,95145.0,95141.0,0.0819]
[1735480400825,1.558721,95145.0,95141.0,0.0799]
[1735480401244,1.558721,95145.0,95141.0,0.0789]
[1735480401644,1.558721,95145.0,95141.0,0.0800708]
[1735480402372,1.57521333,95145.0,95141.0,0.0800708]
[1735480402575,1.319777,95144.0,95141.0,0.0800708]
[1735480403686,1.319777,95144.0,95141.0,0.0830708]
[1735480404426,1.319777,95144.0,95141.0,0.0790708]
[1735480404776,1.319777,95144.0,95141.0,0.0820708]
[1735480404967,1.319777,95144.0,95141.0,0.0830708]
[1735480406181,1.589353,95145.0,95141.0,0.0830708]
[1735480407056,1.589353,95145.0,95141.0,0.0820708]
[1735480407263,1.589353,95145.0,95141.0,0.0800708]
[1735480407443,1.558405,95145.0,95141.0,0.0800708]
[1735480407650,1.558405,95145.0,95141.0,0.0830708]
[1735480409381,1.57489753,95145.0,95141.0,0.0830708]
[1735480409581,1.565635,95144.0,95141.0,0.0830708]
[1735480410506,1.565635,95144.0,95141.0,0.0820708]
[1735480410714,8.54e-05,95146.0,95141.0,0.0820708]
[1735480411055,1.802899,95145.0,95141.0,0.0800708]
[1735480411480,1.802899,95145.0,95141.0,0.0830708]
[1735480411620,1.566349,95144.0,95141.0,0.0820708]
[1735480411820,1.784679,95145.0,95141.0,0.0790708]
[1735480412006,1.784679,95145.0,95141.0,0.0800708]
[1735480412233,1.784679,95145.0,95141.0,0.0820708]
[1735480413491,1.98466802,95145.0,95141.0,0.0810708]
[1735480413697,1.449682,95144.0,95141.0,0.0820708]
[1735480414026,1.433548,95144.0,95141.0,0.0800708]
[1735480414195,1.474647,95143.0,95141.0,0.0790708]
[1735480414496,1.163334,95142.0,95141.0,0.0830708]
[1735480414668,1.433839,95144.0,95141.0,0.0830708]
[1735480414890,1.302217,95144.0,95141.0,0.0800708]
[1735480415095,1.316193,95144.0,95141.0,0.0790708]
[1735480415257,1.316193,95144.0,95141.0,0.0840708]
[1735480415467,1.316193,95144.0,95141.0,0.0860708]
[1735480415666,1.2815,95144.0,95141.0,0.0810708]
[1735480415862,1.293895,95144.0,95141.0,0.0810708]
[1735480416066,1.281453,95144.0,95141.0,0.0860708]
[1735480416267,1.292963,95144.0,95141.0,0.0860708]
[1735480417287,1.05751,95144.0,95141.0,0.0840708]
[1735480417489,1.035857,95144.0,95141.0,0.0860708]
[1735480417813,1.030026,95144.0,95141.0,0.0860708]
[1735480418157,1.08865535,95144.0,95141.0,0.0860708]
[1735480418286,1.058563,95143.0,95141.0,0.0860708]
[1735480419335,1.019838,95143.0,95141.0,0.0810708]
[1735480419499,1.019838,95144.0,95141.0,0.0810708]
[1735480420098,0.704259,95144.0,95141.0,0.0860708]
[1735480420357,0.469753,95144.0,95141.0,0.0840708]
[1735480420656,0.620187,95144.0,95141.0,0.0860708]
[1735480420854,0.602356,95144.0,95141.0,0.0860708]
[1735480421010,0.482547,95143.0,95141.0,0.0860708]
[1735480421215,0.482547,95144.0,95141.0,0.0840708]